Cogmind - Beta 16 @@@ ROGUE MODE // 2025.10.25 @ 23:50:24 Player: szymekc Result: Destroyed by as-60895 with Assembled Blade Performance ------------- Evolutions (0) 0 Regions Visited (2) 400 Robots Destroyed (25) 125 Value Destroyed (409) 409 Prototype IDs (2) 40 Alien Tech Used (0) 0 Bonus (0) 0 TOTAL SCORE: 974 Bonus ------- None Cogmind --------- Core Integrity 0/250 Matter 264/300 Energy 100/100 System Corruption 13% Temperature Cool (0) Movement Treading (160) Location -10/Mines Parts ------- > --- POWER (1) -------- (None) > --- PROPULSION (2) --- Light Treads > --- UTILITY (2) ------ (None) > --- WEAPON (2) ------- (None) > --- INVENTORY (5) ---- Ion Engine Heat Sink Mining Laser Peak State ------------ > --- POWER ------------ Ion Engine > --- PROPULSION ------- Light Treads Light Treads > --- UTILITY ---------- Improved Terrain Scanner Seismic Detector > --- WEAPON ----------- Light Assault Rifle Light Assault Rifle > --- INVENTORY -------- Mining Laser [Rating: 9] Favorites ----------- Power Ion Engine Engine Ion Engine Propulsion Light Treads Treads Light Treads Utility Seismic Detector Device Seismic Detector Protection Light Armor Plating Weapon Light Assault Rifle Energy Gun EM Pulse Gun Ballistic Gun Light Assault Rifle Special Weapon Mining Laser Build | -11 -10 -10 ------- Run | Yrd Mat Min Slots Evolved . | . . . Power . | . . . Propulsion . | . . . Utility . | . . . Weapon . | . . . Parts Attached 16 | 7 6 3 Power 3 | 1 1 1 Engine 3 | 1 1 1 Core . | . . . Reactor . | . . . Propulsion 3 | 2 . 1 Treads 3 | 2 . 1 Leg . | . . . Wheel . | . . . Hover . | . . . Flight . | . . . Utility 3 | 2 1 . Device 2 | 2 . . Storage . | . . . Processor . | . . . Hackware . | . . . Protection 1 | . 1 . Artifact . | . . . Weapon 7 | 2 4 1 Energy Gun 1 | . . 1 Energy Cannon . | . . . Ballistic Gun 5 | 2 3 . Ballistic Cannon . | . . . Launcher . | . . . Special Weapon 1 | . 1 . Impact Weapon . | . . . Slashing Weapon . | . . . Piercing Weapon . | . . . Special Melee Weapon . | . . . Unidentified Prototypes . | . . . Parts Lost 10 | . 1 9 Power 3 | . 1 2 Propulsion 2 | . . 2 Utility 2 | . . 2 Weapon 3 | . . 3 Highest Loss Streak 5 | . 1 5 To Critical Strikes . | . . . Average Backups 3 | . 3 4 Power . | . . 1 Propulsion . | . . . Utility . | . . 1 Weapon 1 | . 1 1 Tool/Special . | . . . Unused Backups 2 | . . 2 Power 1 | . . 1 Propulsion . | . . . Utility 1 | . . 1 Weapon . | . . . Tool/Special . | . . . Average Slot Usage (%) 96 | . 97 96 Engine 12 | . 11 13 Treads 27 | . 28 27 Device 17 | . 26 11 Protection 8 | . 1 13 Ballistic Gun 22 | . 27 19 Special Weapon 4 | . . 7 Peak Build Rating 9 | 9 9 7 Average Rating 7 | 5 8 6 On Entrance 5 | . 9 7 Avg Prop Armor Cover (%) . | . . . Naked Turns . | . . . Heaviest Build 12 | 9 12 12 Greatest Support 40 | 40 40 40 Greatest Overweight (x) . | . . . Average Overweight (x) . | . . . Largest Inventory Capacity 5 | 5 5 5 Average Capacity 5 | 5 5 5 Most Carried 5 | 1 5 5 Average Carried 3 | . 3 4 Final Capacity 5 | 5 5 5 Final Carried 5 | 1 5 3 Class Distribution -------------------- 81% | Mutant 18% | Scavenger-Mutant Dominant Class ---------------- Scavenger-Mutant | -10/Materials Mutant | -10/Mines Resources | -11 -10 -10 ----------- Run | Yrd Mat Min Matter Collected 607 | 330 165 112 Remotely . | . . . Salvage Created 920 | 265 548 107 Parts 56 | 22 34 . Haulers Intercepted 1 | . 1 . Recyclers Shooed 1 | 1 . . Parts Field Recycled . | . . . Retrieved Matter . | . . . Parts Self-Destructed . | . . . Prevented . | . . . Parts Restored . | . . . Kills | -11 -10 -10 ------- Run | Yrd Mat Min Combat Hostiles Destroyed 21 | . 14 7 Guns 21 | . 14 7 Classes Destroyed 7 | 3 3 1 Worker 1 | 1 . . Tunneler 7 | 7 . . Hauler 1 | . 1 . Recycler 2 | 1 1 . Swarmer 6 | . 6 . Grunt 8 | . 8 . Assembled 7 | . . 7 Best Kill Streak 9 | 3 9 3 Combat Bots Only 7 | . 7 3 Max Kills in Single Turn 1 | 1 1 1 Gunslinging . | . . . Exploded . | . . . Melee . | . . . Uniques/NPCs Destroyed . | . . . Combat | -11 -10 -10 -------- Run | Yrd Mat Min Hostile Shots Fired 109 | . 78 31 Missed 24 | . 18 6 Hits 85 | . 60 25 Melee 12 | . . 12 Projectile 73 | . 60 13 Critical Strikes 2 | . 1 1 Damage Taken 1216 | . 681 535 Core 279 | . 183 96 Absorbed by Shields . | . . . Core Remaining (%) 100 | 100 . . Volleys Fired 117 | 30 60 27 Largest 2 | 2 2 2 Hottest 100 | 40 100 100 Shots Fired 231 | 60 119 52 Gun 229 | 60 118 51 Cannon . | . . . Launcher . | . . . Special 2 | . 1 1 Kinetic 221 | 60 118 43 Thermal 2 | . 1 1 Explosive . | . . . Electromagnetic 8 | . . 8 Robot Hit Streak 14 | 12 14 8 Robot Miss Streak 4 | 3 3 4 Penetration Max . | . . . Secondary Targets 2 | . 1 1 Max Gunslinging Chain 1 | . 1 1 Shots Hit Robots 155 | 41 83 31 Core Hits 65 | 18 31 16 Critical Kills . | . . . Critical Parts Destroyed 1 | . 1 . Critical Strikes 1 | . 1 . Destroy 1 | . 1 . Melee Attacks . | . . . Impact . | . . . Slashing . | . . . Piercing . | . . . Sneak Attacks . | . . . Combat Hostiles . | . . . Follow-up Attacks . | . . . Damage Inflicted 1388 | 330 720 338 Guns 1379 | 330 711 338 Cannons . | . . . Explosions . | . . . Melee . | . . . Ramming 9 | . 9 . Kinetic 1317 | 330 711 276 Thermal . | . . . Explosive . | . . . Electromagnetic 62 | . . 62 Impact . | . . . Slashing . | . . . Piercing . | . . . Highest Corruption 8 | . . 8 Average Corruption 8 | . . 8 Corruption Purged . | . . . Corruption Blocked . | . . . Overload Shots . | . . . Overflow Damage . | . . . Projectiles . | . . . Explosions . | . . . Melee . | . . . Knockbacks . | . . . Impact . | . . . Kinetic . | . . . Secondary . | . . . Self-Inflicted Damage . | . . . Shots . | . . . Rammed 2 | . 2 . Targets Rammed 2 | . 2 . Kicked . | . . . Crushed . | . . . Highest Temperature 44 | . 44 36 Average Temperature 14 | . 12 15 Received Heat Transfer 395 | . 315 80 Siege Activations . | . . . Martial Activations . | . . . Shielding Activations . | . . . Robots Disrupted . | . . . Combat Hostiles . | . . . Robots Corrupted . | . . . Combat Hostiles . | . . . Parts Fried . | . . . Impact Corruptions . | . . . Robots Melted . | . . . Combat Hostiles . | . . . Parts Melted . | . . . Heat Transferred . | . . . Parts Sabotaged . | . . . Parts Stolen . | . . . Parts Stripped . | . . . Power Chain Reactions . | . . . Alert | -11 -10 -10 ------- Run | Yrd Mat Min Maximum Alert Level . | . . . Low Security (%) 100 | 100 100 100 Level 1 . | . . . Level 2 . | . . . Level 3 . | . . . Level 4 . | . . . Level 5 . | . . . High Security . | . . . Max Security . | . . . Peak Influence 194 | 15 194 52 Initial 52 | . . 52 Average 47 | 2 123 4 Influence Increases 413 | 45 367 1 Destroy 0b10 Robot/C 280 | . 280 . Destroy 0b10 Robot/NC 55 | 45 10 . Destroy Leader 42 | . 42 . Successful Hack 4 | . 4 . Destroy Structure 2 | . 1 1 Lose Combat Pursuer 30 | . 30 . Influence Decreases 413 | 45 232 136 Entered New Map 83 | . . 83 Time Decay 320 | 45 222 53 Lost Part 10 | . 10 . Squads Dispatched 2 | . 2 . Investigation 1 | . 1 . Extermination . | . . . Reinforcement 1 | . 1 . Assault . | . . . Garrison . | . . . Intercept . | . . . Searches Triggered . | . . . Construction Impeded . | . . . Haulers Reinforced . | . . . Active Scanning Responses . | . . . Cargo Convoy Interrupts . | . . . Stealth | -11 -10 -10 --------- Run | Yrd Mat Min Distress Signals 3 | . 3 . Communications Jammed . | . . . Distress Signals . | . . . Times Spotted 32 | . 22 10 Peak Tracking Total 5 | . 5 2 Tactical Retreats 3 | . 2 1 Traps | -11 -10 -10 ------- Run | Yrd Mat Min Traps Triggered 1 | . 1 . Indirectly . | . . . Trap Hack Attempts . | . . . Triggered . | . . . Disarmed . | . . . Reprogrammed . | . . . Reused . | . . . Traps Extracted . | . . . Installed . | . . . Triggered . | . . . Machines | -11 -10 -10 ---------- Run | Yrd Mat Min Machines Disabled . | . . . Max in Single Turn . | . . . Machines Repaired . | . . . Machines Dismantled . | . . . Machines Sabotaged . | . . . Overloaded Fab Kills . | . . . Hacking | -11 -10 -10 --------- Run | Yrd Mat Min Machines Accessed 2 | . 2 . Terminals 2 | . 2 . Fabricators . | . . . Repair Stations . | . . . Recycling Units . | . . . Scanalyzers . | . . . Garrison Access . | . . . Total Hacks 8 | . 8 . Successful 2 | . 2 . Failed 6 | . 6 . Catastrophic 1 | . 1 . Database Lockouts . | . . . Manual 3 | . 3 . Terminals 8 | . 8 . Fabricators . | . . . Repair Stations . | . . . Recycling Units . | . . . Scanalyzers . | . . . Garrison Access . | . . . Terminal Hacks 2 | . 2 . Prototype ID Bank 1 | . 1 . Locate Traps 1 | . 1 . Fabricator Hacks . | . . . Repair Station Hacks . | . . . Recycling Unit Hacks . | . . . Scanalyzer . | . . . Garrison Access Hacks . | . . . Unauthorized Hacks . | . . . Terminals . | . . . Fabricators . | . . . Repair Stations . | . . . Recycling Units . | . . . Scanalyzers . | . . . Garrison Access . | . . . Data Cores Recovered . | . . . Used . | . . . Hacking Detections 2 | . 2 . Full Trace Events . | . . . Feedback Events . | . . . Feedback Blocked . | . . . Robot Schematics Acquired . | . . . Robots Built . | . . . Authchips . | . . . Time . | . . . Total Robot Build Rating . | . . . Part Schematics Acquired . | . . . Parts Built . | . . . Authchips . | . . . Time . | . . . Total Part Build Rating . | . . . Part Studies Acquired . | . . . Parts Repaired . | . . . Time . | . . . Parts Recycled . | . . . Recycled Matter . | . . . Retrieved Matter . | . . . Retrieved Components . | . . . Parts Scanalyzed . | . . . Part Schematics Acquired . | . . . Parts Damaged . | . . . Bothacking | -11 -10 -10 ------------ Run | Yrd Mat Min Used RIF Installer . | . . . Robots Hacked . | . . . Non-combat . | . . . Combat . | . . . Robot Hacks Applied . | . . . Relay Couplers Released . | . . . Fabnet Peak Effective % . | . . . Robots Rewired . | . . . Allies Hacked . | . . . Hacks Repelled . | . . . Allies | -11 -10 -10 -------- Run | Yrd Mat Min Total Allies . | . . . Largest Group . | . . . Highest-Rated Group . | . . . Highest-Rated Ally . | . . . Total Orders . | . . . Ally Attacks . | . . . Total Damage . | . . . Kills . | . . . Allies Corrupted . | . . . Allies Melted . | . . . Intel | -11 -10 -10 ------- Run | Yrd Mat Min Active Infowar (turns) 1247 | 50 569 628 Terrain 556 | 50 506 . Seismic 1207 | 10 569 628 Robot Analysis Total . | . . . Derelict Logs Recovered 1 | . . 1 Drone Launches . | . . . Drone Recoveries . | . . . Exploration | -11 -10 -10 ------------- Run | Yrd Mat Min Turns Passed 1561 | 230 569 762 Spaces Moved 485 | 80 231 174 Core 6 | 6 . . Treads 479 | 74 231 174 Legs . | . . . Wheels . | . . . Hover . | . . . Flight . | . . . Fastest Speed 50 | 50 160 160 Average Speed 158 | 151 160 160 Slowest Speed 160 | 160 160 160 Overloaded Moves . | . . . Propulsion Burnouts . | . . . Robots Hopped . | . . . Potential Cave-ins . | . . . Cave-ins Triggered . | . . . Exploration Rate (%) 28 | 7 45 32 Regions Visited 2 Branch Regions 1 Pre-discovered Areas 1 | . . 1 Known Exits Taken . | . . . Unknown Exits Taken 2 | 1 1 . Scrap Searched . | . . . Spaces Dug 2 | . 1 1 Terrain Destroyed 2 | . 1 1 Melee . | . . . Projectile 2 | . 1 1 AOE . | . . . Terrain Rammed . | . . . Walls Destroyed . | . . . Machines Disabled . | . . . Actions | -11 -10 -10 --------- Run | Yrd Mat Min Total 1072 | 137 330 605 Wait 441 | 20 24 397 Move 483 | 79 230 174 Hop . | . . . Pick Up 5 | 1 4 . Fast Attach 11 | 7 2 2 Attach 2 | . . 2 Detach . | . . . Swap 7 | . 4 3 Drop 4 | . 4 . Fire 117 | 30 60 27 Melee . | . . . Ram . | . . . Kick . | . . . Crush 2 | . 2 . Escape Stasis . | . . . Rewire . | . . . Trap . | . . . Miscellaneous . | . . . Route ------- -11/Scrapyard -10/Materials -10/Mines History --------- Turn | Location | Event 6 | -11/Scrapyard | Discovered new exit (range 16) 231 | -11/Scrapyard | Entered Materials 318 | -10/Materials | Build established: Mutant 377 | -10/Materials | Core integrity fell below 50% 420 | -10/Materials | Destroyed 7 combat bots 770 | -10/Materials | Discovered new exit (range 5) 800 | -10/Materials | Entered Mines 811 | -10/Mines | Met a Derelict bent on vengeance 882 | -10/Mines | Learned location of Zion (-7) 920 | -10/Mines | Assembled infested the area 925 | -10/Mines | Assisted by a Guerilla fighting off Assembled 1411 | -10/Mines | Core integrity fell below 20% 1468 | -10/Mines | Lost 3 parts (1p1n1u) 1562 | -10/Mines | Destroyed by as-60895 with Assembled Blade Last Messages --------------- 01503_ Switching to secondary target: as-10111. 01504_ Acquired 13 matter. 01512_ as-10111 destroyed. 01515_ Acquired 26 matter. 01520_ Lgt. Assault Rifle destroyed. 01522_ Lgt. Ion Engine severed. 01532_ Destroyed Asb. Hover Unit. 01532_ as-34118 destroyed. 01538_ Acquired Lgt. Ion Engine. 01546_ Acquired 20 matter. 01559_ EM Pulse Gun destroyed. 01559_ Lgt. Armor Plating destroyed. 01559_ System corrupted by crushing effect (+3). 01559_ System corrupted by crushing effect (+5). 01562_ Lgt. Treads destroyed. 01562_ Assault Rifle destroyed. 01562_ Lgt. Ion Engine destroyed. 01562_ System corrupted by crushing effect (+1). 01562_ System corrupted by crushing effect (+3). 01562_ System corrupted by crushing effect (+1). Map ----- +----------------------------------------------------+ | ?????????????????????????????????????????????????? | | ?????????????????????????????????????????????????? | | ?????????????????????????????????????????????????? | | ?????????????????????????????????????????????????? | | ?????????????????????????????????????????????????? | | ?????????????????????????????????????????????????? | | ?????????????????????????????????????????????????? | | ?????????????????????????????????????????????????? | | ?????????????????????????????????????????????????? | | ?????????????????????????????????????????????????? | | ?????????????????????????????????????????????????? | | ?????????????????????????????????????????????????? | | ?????????????????????????????????????????????????? | | ?????????????????????????????????????????????????? | | ?????????????????????????????????????????????????? | | ?????????????????????????????????????????????????? | | ?????????????????????????????????????????????????? | | ??????????????????????????????????#############??? | | ??????????????????????????????????# #??? | | ??????????????????????????????????# #??? | | ??????????????????????????????????# """ """ #### | | ????????????????##=???????????????# """ """ ## | | ???????????????## ######????????# """ """ ## # | | ???????????????# %!#????????# # | | ??????????????# ! ########## """ """ # | | ????????? ####a@ % """ """ #### | | ???????????????????????#a########## """ """ #??# | | ???????????????????????# #????????# #?## | | ???????????????????????# #????????# #?# | | ???????????????????????# #???####?# ### | | ???????????????????????# #??## ####### ######## | | ???????????????????????# #?## ##???# #????## | | ???????????????????????# ### ##??#%###### | | ???????????????????????# ####!# # | | ???????????????????????#### ### # | | ??????????????????????????## #?## # | | ???????????????????????????## ######??# | | ????????????????????????????## #???????# | | ?????????????????????????????#### ##??????# | | ????????????????????????????????## ##?????# | | ????????????????????????????????## #?????# | | ??????????????????????????????### #?????# ## | | ??????????????????????????##### #?????# #? | | ??????????????????????????#"# ##?????# #? | | ??????????????????????????## ##??????# #? | | ???????????????????????????# ##??????? ? | | ???????????????????????????## ##????????# ? | | ????????????????????????????### ##?????????####? | | ??????????????????????????????#####??????????????? | | ?????????????????????????????????????????????????? | +----------------------------------------------------+ Best States ------------- Heat Dissipation 25 Energy Generation 10 Energy Capacity 250 Matter Stores 300 Matter Capacity 300 Sight Range 16 Terrain Scan Range 16 Terrain Scan Density 10 Armor Coverage 150 Evasion (%) 40 Recoil Reduction 2 Item Schematics ----------------- None Robot Schematics ------------------ None Fabricated ------------ Nothing Repaired ---------- Nothing Studied --------- None Alien Tech Used ----------------- None Achievements -------------- None Challenges ------------ None Game ------ Seed UltimateFocalBattery Manual? 0 Play Time 00:09:01 Cumulative 909.9 hours Start 2025.10.25 @ 23:43:44 End 2025.10.25 @ 23:50:24 Sessions 1 Manual Loads 0 Difficulty Rogue Special Mode None Game No. 288 Rogue 286 Adventurer 2 Explorer 0 Win Type - Total 61 Types 19/11/14/1/1/1/11/1/0/2 Lore% 96 Gallery% 94 Achievement% 76 Wizard Run 0 Options --------- Layout 0 ASCII 0 Keyboard 1 Movement Numpad Keybinds 0 Fullscreen 1 Font 24/Smallcaps Map View 76x50 Zoom Use 0% Tactical HUD 1 Map Filters NONE Filters NONE Steam 1 RUN: 5d628321-f91a-4aa4-ba2c-61fb7e686832